[Event "*** Titled Tuesday Blitz"]
[Site "Chess.com"]
[Date "2021.03.30"]
[Round "7"]
[White "Fy_Rakotomaharo"]
[Black "anon481216"]
[Result "0-1"]
[WhiteElo "2692"]
[BlackElo "2527"]
[TimeControl "180+1"]
[EndTime "11:18:47 PDT"]
[Termination "anon481216 won by resignation"]

1. e4 {[%clk 0:03:00.9]} 1... c5 {[%clk 0:02:59.7]} 2. Nf3 {[%clk 0:03:00.2]}
2... e6 {[%clk 0:03:00]} 3. d4 {[%clk 0:03:00.1]} 3... cxd4 {[%clk 0:03:00]} 4.
Nxd4 {[%clk 0:03:01]} 4... Nc6 {[%clk 0:03:00.5]} 5. Nc3 {[%clk 0:03:01.3]} 5...
Qc7 {[%clk 0:03:01.1]} 6. g3 {[%clk 0:03:01.9]} 6... a6 {[%clk 0:03:01]} 7. Bg2
{[%clk 0:03:02.1]} 7... d6 {[%clk 0:03:01.5]} 8. O-O {[%clk 0:03:00]} 8... Bd7
{[%clk 0:03:02]} 9. Re1 {[%clk 0:02:53]} 9... Be7 {[%clk 0:03:02]} 10. Nxc6
{[%clk 0:02:43.2]} 10... Bxc6 {[%clk 0:03:01.7]} 11. a4 {[%clk 0:02:43.8]} 11...
Nf6 {[%clk 0:02:58.3]} 12. a5 {[%clk 0:02:43.8]} 12... O-O {[%clk 0:02:55.6]}
13. Be3 {[%clk 0:02:43.6]} 13... Rac8 {[%clk 0:02:54]} 14. Bb6 {[%clk
0:02:36.8]} 14... Qb8 {[%clk 0:02:53.7]} 15. Bd4 {[%clk 0:02:15.4]} 15... Nd7
{[%clk 0:02:51.7]} 16. Na4 {[%clk 0:02:10.9]} 16... Qc7 {[%clk 0:02:37.5]} 17.
Nb6 {[%clk 0:02:09]} 17... Nxb6 {[%clk 0:02:32.5]} 18. Bxb6 {[%clk 0:02:09.1]}
18... Qb8 {[%clk 0:02:24.7]} 19. Qd2 {[%clk 0:02:07.1]} 19... Bd8 {[%clk
0:01:57.6]} 20. Bd4 {[%clk 0:01:50.2]} 20... Be7 {[%clk 0:01:31]} 21. Rad1
{[%clk 0:01:41.6]} 21... Rfd8 {[%clk 0:01:20.2]} 22. f4 {[%clk 0:01:39.8]} 22...
d5 {[%clk 0:01:04.8]} 23. e5 {[%clk 0:01:38.7]} 23... Bb5 {[%clk 0:01:05]} 24.
b4 {[%clk 0:01:29.1]} 24... Ba4 {[%clk 0:00:52.7]} 25. Rc1 {[%clk 0:01:27.5]}
25... Rc6 {[%clk 0:00:38.1]} 26. c3 {[%clk 0:01:26.2]} 26... Rdc8 {[%clk
0:00:37.6]} 27. f5 {[%clk 0:01:26.1]} 27... Bf8 {[%clk 0:00:27.1]} 28. Rf1
{[%clk 0:01:13.9]} 28... Bb5 {[%clk 0:00:24.8]} 29. Rf4 {[%clk 0:00:41.2]} 29...
Bxb4 {[%clk 0:00:23]} 30. f6 {[%clk 0:00:41.5]} 30... g6 {[%clk 0:00:18.1]} 31.
h4 {[%clk 0:00:36.7]} 31... Bf8 {[%clk 0:00:09.3]} 32. h5 {[%clk 0:00:21.6]}
32... g5 {[%clk 0:00:06.9]} 33. Rf2 {[%clk 0:00:13.4]} 33... h6 {[%clk
0:00:07.3]} 34. Re1 {[%clk 0:00:08.8]} 34... Qc7 {[%clk 0:00:07.7]} 35. Kh2
{[%clk 0:00:08.8]} 35... Qxa5 {[%clk 0:00:06.4]} 36. Qe3 {[%clk 0:00:05.6]}
36... Qc7 {[%clk 0:00:06.4]} 37. Rd2 {[%clk 0:00:04.6]} 37... Rxc3 {[%clk
0:00:06.6]} 38. Bxc3 {[%clk 0:00:04.2]} 38... Qxc3 {[%clk 0:00:07.2]} 39. Qf2
{[%clk 0:00:04.4]} 39... Bc5 {[%clk 0:00:05.7]} 40. Rc2 {[%clk 0:00:02.1]} 40...
Bxf2 {[%clk 0:00:05.2]} 41. Rxc3 {[%clk 0:00:02.7]} 41... Rxc3 {[%clk
0:00:05.7]} 42. Rd1 {[%clk 0:00:03.2]} 42... a5 {[%clk 0:00:04.8]} 43. Bxd5
{[%clk 0:00:03.2]} 43... Bxg3+ {[%clk 0:00:04.6]} 44. Kh1 {[%clk 0:00:03.1]}
44... exd5 {[%clk 0:00:04.8]} 45. Kg1 {[%clk 0:00:04]} 45... Bc6 {[%clk
0:00:04.5]} 0-1

[Event "*** Titled Tuesday Blitz"]
[Site "Chess.com"]
[Date "2021.03.30"]
[Round "7"]
[White "Sadykov_Ramil"]
[Black "DrCeltic"]
[Result "1-0"]
[WhiteElo "2596"]
[BlackElo "2429"]
[TimeControl "180+1"]
[EndTime "11:18:48 PDT"]
[Termination "Sadykov_Ramil won on time"]

1. e4 {[%clk 0:03:00.9]} 1... c5 {[%clk 0:03:00]} 2. Nf3 {[%clk 0:03:00.7]} 2...
e6 {[%clk 0:03:00.2]} 3. d4 {[%clk 0:03:00.7]} 3... cxd4 {[%clk 0:03:01.1]} 4.
Nxd4 {[%clk 0:03:01.6]} 4... a6 {[%clk 0:03:01.9]} 5. Nc3 {[%clk 0:03:01.7]}
5... Qc7 {[%clk 0:03:02.1]} 6. Qf3 {[%clk 0:03:01.1]} 6... Nf6 {[%clk
0:02:51.8]} 7. Qg3 {[%clk 0:02:59.9]} 7... d6 {[%clk 0:02:49.5]} 8. Be3 {[%clk
0:02:38.7]} 8... b5 {[%clk 0:02:48.8]} 9. a3 {[%clk 0:02:37.1]} 9... Bb7 {[%clk
0:02:47.7]} 10. f3 {[%clk 0:02:32.6]} 10... Nbd7 {[%clk 0:02:38.2]} 11. O-O-O
{[%clk 0:02:30.4]} 11... Rc8 {[%clk 0:02:23.6]} 12. Kb1 {[%clk 0:02:28.2]} 12...
Qb8 {[%clk 0:02:13.9]} 13. Nb3 {[%clk 0:01:58.6]} 13... Ne5 {[%clk 0:01:50]} 14.
Na5 {[%clk 0:01:39]} 14... Ba8 {[%clk 0:01:45.6]} 15. Qf2 {[%clk 0:01:29.3]}
15... Nfd7 {[%clk 0:01:26.4]} 16. g4 {[%clk 0:01:01.1]} 16... Be7 {[%clk
0:01:15.9]} 17. Na2 {[%clk 0:00:53.4]} 17... Qc7 {[%clk 0:00:57.3]} 18. Nb3
{[%clk 0:00:48.9]} 18... Nc4 {[%clk 0:00:53]} 19. Bc1 {[%clk 0:00:43.3]} 19...
O-O {[%clk 0:00:48.7]} 20. h4 {[%clk 0:00:35.8]} 20... a5 {[%clk 0:00:42.8]} 21.
g5 {[%clk 0:00:30.4]} 21... d5 {[%clk 0:00:37.6]} 22. Bd3 {[%clk 0:00:26.2]}
22... Nde5 {[%clk 0:00:31]} 23. Rhe1 {[%clk 0:00:21.3]} 23... dxe4 {[%clk
0:00:25.3]} 24. Bxe4 {[%clk 0:00:15.8]} 24... Bxe4 {[%clk 0:00:24.2]} 25. Rxe4
{[%clk 0:00:13.6]} 25... a4 {[%clk 0:00:20.5]} 26. Nd4 {[%clk 0:00:12.9]} 26...
Bc5 {[%clk 0:00:18.8]} 27. c3 {[%clk 0:00:09.7]} 27... Nc6 {[%clk 0:00:17]} 28.
Qc2 {[%clk 0:00:08.2]} 28... Nxd4 {[%clk 0:00:16.6]} 29. cxd4 {[%clk 0:00:08.4]}
29... Bd6 {[%clk 0:00:16.2]} 30. Ka1 {[%clk 0:00:08]} 30... Rfd8 {[%clk
0:00:14]} 31. d5 {[%clk 0:00:07.9]} 31... e5 {[%clk 0:00:13.2]} 32. f4 {[%clk
0:00:07.3]} 32... Qb7 {[%clk 0:00:10.9]} 33. f5 {[%clk 0:00:06.3]} 33... Na5
{[%clk 0:00:10.1]} 34. Qd3 {[%clk 0:00:05.3]} 34... Nb3+ {[%clk 0:00:09.4]} 35.
Kb1 {[%clk 0:00:05.9]} 35... b4 {[%clk 0:00:09.8]} 36. axb4 {[%clk 0:00:05.2]}
36... Rd7 {[%clk 0:00:06.6]} 37. g6 {[%clk 0:00:05.5]} 37... Rdc7 {[%clk
0:00:06.3]} 38. gxf7+ {[%clk 0:00:05.5]} 38... Kxf7 {[%clk 0:00:05.4]} 39. Be3
{[%clk 0:00:05.7]} 39... Kg8 {[%clk 0:00:02.6]} 40. f6 {[%clk 0:00:06]} 40... g6
{[%clk 0:00:01.7]} 41. h5 {[%clk 0:00:05.4]} 41... Rf7 {[%clk 0:00:01.6]} 42.
hxg6 {[%clk 0:00:05.4]} 42... hxg6 {[%clk 0:00:02.1]} 43. Rg4 {[%clk 0:00:06]}
1-0

[Event "*** Titled Tuesday Blitz"]
[Site "Chess.com"]
[Date "2021.03.30"]
[Round "7"]
[White "Artyom_ChessMate"]
[Black "tjychess"]
[Result "1-0"]
[WhiteElo "2562"]
[BlackElo "2680"]
[TimeControl "180+1"]
[EndTime "11:18:50 PDT"]
[Termination "Artyom_ChessMate won on time"]

1. e4 {[%clk 0:03:00.9]} 1... e5 {[%clk 0:03:00.2]} 2. Nf3 {[%clk 0:02:59.2]}
2... Nc6 {[%clk 0:03:00.5]} 3. Bb5 {[%clk 0:02:58.7]} 3... a6 {[%clk 0:03:00.6]}
4. Bxc6 {[%clk 0:02:58.9]} 4... dxc6 {[%clk 0:03:01.5]} 5. O-O {[%clk
0:02:59.4]} 5... f6 {[%clk 0:03:01.7]} 6. d4 {[%clk 0:02:59.6]} 6... Bg4 {[%clk
0:03:02.1]} 7. c3 {[%clk 0:02:58.9]} 7... Qd7 {[%clk 0:02:43.1]} 8. h3 {[%clk
0:02:57.9]} 8... Bxf3 {[%clk 0:02:20.2]} 9. Qxf3 {[%clk 0:02:58.8]} 9... O-O-O
{[%clk 0:02:18.8]} 10. Be3 {[%clk 0:02:56.1]} 10... Ne7 {[%clk 0:02:10.8]} 11.
dxe5 {[%clk 0:02:51.4]} 11... fxe5 {[%clk 0:02:11.7]} 12. Nd2 {[%clk 0:02:51.4]}
12... Qe6 {[%clk 0:02:10.7]} 13. b4 {[%clk 0:02:49.4]} 13... Ng6 {[%clk
0:02:08.7]} 14. a4 {[%clk 0:02:48.3]} 14... Be7 {[%clk 0:02:04.9]} 15. b5 {[%clk
0:02:45.1]} 15... a5 {[%clk 0:02:00.7]} 16. Rfb1 {[%clk 0:02:32.1]} 16... Rhf8
{[%clk 0:01:50.5]} 17. Qe2 {[%clk 0:02:28.1]} 17... Nf4 {[%clk 0:01:41.9]} 18.
Bxf4 {[%clk 0:02:26.5]} 18... exf4 {[%clk 0:01:41.8]} 19. Nf3 {[%clk 0:02:12.8]}
19... Bc5 {[%clk 0:01:31.8]} 20. bxc6 {[%clk 0:02:03.7]} 20... Qxc6 {[%clk
0:01:32.7]} 21. Rb5 {[%clk 0:02:02.5]} 21... b6 {[%clk 0:01:27.9]} 22. Ne5
{[%clk 0:01:55]} 22... Qe6 {[%clk 0:01:22.7]} 23. Nd3 {[%clk 0:01:36.1]} 23...
Be7 {[%clk 0:01:15.7]} 24. f3 {[%clk 0:01:25.2]} 24... Qc4 {[%clk 0:01:00.5]}
25. Rd1 {[%clk 0:00:55.7]} 25... Qxa4 {[%clk 0:01:00.2]} 26. Rd5 {[%clk
0:00:51.6]} 26... Rxd5 {[%clk 0:00:51.5]} 27. exd5 {[%clk 0:00:52.5]} 27... Bd6
{[%clk 0:00:52.4]} 28. Nb2 {[%clk 0:00:46.1]} 28... Qb3 {[%clk 0:00:44.9]} 29.
Kh1 {[%clk 0:00:42.8]} 29... Kb8 {[%clk 0:00:23.4]} 30. Re1 {[%clk 0:00:38]}
30... Qxc3 {[%clk 0:00:20.4]} 31. Nc4 {[%clk 0:00:37.2]} 31... Bc5 {[%clk
0:00:19.9]} 32. Rb1 {[%clk 0:00:35.8]} 32... Qd4 {[%clk 0:00:16.6]} 33. d6
{[%clk 0:00:29.4]} 33... Bxd6 {[%clk 0:00:08.8]} 34. Rd1 {[%clk 0:00:26.9]}
34... Qc5 {[%clk 0:00:08.4]} 35. Nxd6 {[%clk 0:00:27]} 35... cxd6 {[%clk
0:00:09.3]} 36. Qe7 {[%clk 0:00:25.3]} 36... Rc8 {[%clk 0:00:09.8]} 37. Rxd6
{[%clk 0:00:23.2]} 37... Rc7 {[%clk 0:00:07.8]} 38. Rd8+ {[%clk 0:00:19.8]}
38... Ka7 {[%clk 0:00:07]} 39. Qe8 {[%clk 0:00:20.7]} 39... Qc6 {[%clk
0:00:05.6]} 40. Qe5 {[%clk 0:00:15.3]} 40... Qc1+ {[%clk 0:00:04]} 41. Kh2
{[%clk 0:00:15]} 41... Qc5 {[%clk 0:00:04.9]} 42. Qe4 {[%clk 0:00:13.5]} 42...
Qc6 {[%clk 0:00:05]} 43. Qxh7 {[%clk 0:00:13.2]} 43... g5 {[%clk 0:00:04.5]} 44.
Qf5 {[%clk 0:00:12.3]} 44... Qc5 {[%clk 0:00:04.1]} 45. Qe4 {[%clk 0:00:11.3]}
45... Rb7 {[%clk 0:00:04.1]} 46. Rd5 {[%clk 0:00:10.5]} 46... Qb4 {[%clk
0:00:02.1]} 47. Qe8 {[%clk 0:00:09.1]} 1-0

[Event "*** Titled Tuesday Blitz"]
[Site "Chess.com"]
[Date "2021.03.30"]
[Round "7"]
[White "WanderingPuppet"]
[Black "Kotofeyca"]
[Result "0-1"]
[WhiteElo "2501"]
[BlackElo "2396"]
[TimeControl "180+1"]
[EndTime "11:18:50 PDT"]
[Termination "Kotofeyca won on time"]

1. e4 {[%clk 0:03:00.9]} 1... c5 {[%clk 0:02:59.6]} 2. Nf3 {[%clk 0:03:01.2]}
2... d6 {[%clk 0:03:00.1]} 3. d4 {[%clk 0:03:01.8]} 3... cxd4 {[%clk 0:03:01]}
4. Nxd4 {[%clk 0:03:02.6]} 4... Nf6 {[%clk 0:03:01.5]} 5. Nc3 {[%clk 0:03:03.1]}
5... a6 {[%clk 0:03:02.2]} 6. Be3 {[%clk 0:03:03.6]} 6... Ng4 {[%clk 0:03:01.6]}
7. Bg5 {[%clk 0:03:03.3]} 7... Nc6 {[%clk 0:03:01.3]} 8. Be2 {[%clk 0:03:02]}
8... Qb6 {[%clk 0:03:01.2]} 9. Bxg4 {[%clk 0:03:00.2]} 9... Qxd4 {[%clk
0:03:01.3]} 10. O-O {[%clk 0:02:59.3]} 10... Qxd1 {[%clk 0:02:53.2]} 11. Bxd1
{[%clk 0:02:59.5]} 11... e6 {[%clk 0:02:48.4]} 12. Be2 {[%clk 0:02:57.8]} 12...
Be7 {[%clk 0:02:37.2]} 13. Be3 {[%clk 0:02:57.5]} 13... b5 {[%clk 0:02:33.9]}
14. a4 {[%clk 0:02:56.2]} 14... b4 {[%clk 0:02:33.5]} 15. Na2 {[%clk 0:02:33.7]}
15... Bb7 {[%clk 0:02:30.4]} 16. Rfd1 {[%clk 0:02:14]} 16... a5 {[%clk
0:02:02.9]} 17. c3 {[%clk 0:02:06.8]} 17... bxc3 {[%clk 0:01:59.5]} 18. Nxc3
{[%clk 0:02:04.3]} 18... O-O {[%clk 0:01:42.7]} 19. f3 {[%clk 0:02:03.9]} 19...
Nb4 {[%clk 0:01:38.5]} 20. Rd2 {[%clk 0:02:02.7]} 20... d5 {[%clk 0:01:35.2]}
21. exd5 {[%clk 0:01:55.9]} 21... Nxd5 {[%clk 0:01:34.9]} 22. Nxd5 {[%clk
0:01:56.1]} 22... Bxd5 {[%clk 0:01:35.4]} 23. Bd4 {[%clk 0:01:48.9]} 23... Rfb8
{[%clk 0:01:30.2]} 24. Bb5 {[%clk 0:01:47.3]} 24... Rc8 {[%clk 0:01:18.2]} 25.
Bc3 {[%clk 0:01:29.2]} 25... Rc7 {[%clk 0:01:04.3]} 26. Re1 {[%clk 0:01:24.5]}
26... Bg5 {[%clk 0:00:53.3]} 27. Rde2 {[%clk 0:01:16.8]} 27... h5 {[%clk
0:00:48.5]} 28. Re5 {[%clk 0:01:10.8]} 28... f6 {[%clk 0:00:43.2]} 29. R5e2
{[%clk 0:00:56.7]} 29... h4 {[%clk 0:00:40.8]} 30. h3 {[%clk 0:00:50.2]} 30...
Bf4 {[%clk 0:00:37.3]} 31. Rd1 {[%clk 0:00:45.8]} 31... Kf7 {[%clk 0:00:35.7]}
32. Ra1 {[%clk 0:00:30.4]} 32... Bg3 {[%clk 0:00:33.7]} 33. Be1 {[%clk
0:00:28.1]} 33... Bxe1 {[%clk 0:00:27.2]} 34. Raxe1 {[%clk 0:00:25.2]} 34...
Rac8 {[%clk 0:00:27.7]} 35. Rd2 {[%clk 0:00:21.2]} 35... Rc1 {[%clk 0:00:26.1]}
36. Rxc1 {[%clk 0:00:17.7]} 36... Rxc1+ {[%clk 0:00:27]} 37. Kf2 {[%clk
0:00:18]} 37... Ke7 {[%clk 0:00:26.2]} 38. Ke3 {[%clk 0:00:11.5]} 38... Kd6
{[%clk 0:00:26]} 39. Kd3 {[%clk 0:00:06.6]} 39... g5 {[%clk 0:00:23.1]} 40. Ke3
{[%clk 0:00:06.5]} 40... Kc5 {[%clk 0:00:22]} 41. Kf2 {[%clk 0:00:05]} 41... Kb4
{[%clk 0:00:20.5]} 42. Ke3 {[%clk 0:00:04.9]} 42... Re1+ {[%clk 0:00:19.7]} 43.
Kf2 {[%clk 0:00:04.9]} 43... Rb1 {[%clk 0:00:19.6]} 44. Ke3 {[%clk 0:00:05]}
44... Kb3 {[%clk 0:00:19.9]} 45. f4 {[%clk 0:00:05.3]} 45... Rxb2 {[%clk
0:00:16.2]} 46. Rd3+ {[%clk 0:00:05.1]} 46... Kb4 {[%clk 0:00:16.4]} 47. fxg5
{[%clk 0:00:04.9]} 47... fxg5 {[%clk 0:00:17.3]} 48. Rd4+ {[%clk 0:00:04.3]}
48... Kc5 {[%clk 0:00:14.6]} 49. Rg4 {[%clk 0:00:04.8]} 49... Rxg2 {[%clk
0:00:14.6]} 0-1

[Event "*** Titled Tuesday Blitz"]
[Site "Chess.com"]
[Date "2021.03.30"]
[Round "7"]
[White "The_Machine04"]
[Black "Legendinunknown"]
[Result "0-1"]
[WhiteElo "2429"]
[BlackElo "2593"]
[TimeControl "180+1"]
[EndTime "11:18:57 PDT"]
[Termination "Legendinunknown won on time"]

1. d4 {[%clk 0:02:59.5]} 1... d5 {[%clk 0:02:47.6]} 2. Bf4 {[%clk 0:02:58]} 2...
Nf6 {[%clk 0:02:44.7]} 3. e3 {[%clk 0:02:56.1]} 3... g6 {[%clk 0:02:44]} 4. h4
{[%clk 0:02:51.8]} 4... Bg7 {[%clk 0:02:42]} 5. Nc3 {[%clk 0:02:27.9]} 5... h5
{[%clk 0:02:39.6]} 6. Nf3 {[%clk 0:02:26.8]} 6... Bg4 {[%clk 0:02:37]} 7. Be2
{[%clk 0:02:26.1]} 7... a6 {[%clk 0:02:29.4]} 8. Ne5 {[%clk 0:02:25.2]} 8...
Bxe2 {[%clk 0:02:24.4]} 9. Qxe2 {[%clk 0:02:26.1]} 9... Nbd7 {[%clk 0:02:24.9]}
10. O-O-O {[%clk 0:02:14.5]} 10... e6 {[%clk 0:02:20]} 11. f3 {[%clk 0:02:10.9]}
11... Nxe5 {[%clk 0:02:17.4]} 12. Bxe5 {[%clk 0:02:07.8]} 12... Qd7 {[%clk
0:02:14.6]} 13. g4 {[%clk 0:01:53.2]} 13... Rh7 {[%clk 0:02:08.7]} 14. g5 {[%clk
0:01:42.9]} 14... Ng8 {[%clk 0:02:06.7]} 15. Bxg7 {[%clk 0:01:40.8]} 15... Rxg7
{[%clk 0:02:07.6]} 16. e4 {[%clk 0:01:39.6]} 16... O-O-O {[%clk 0:02:03]} 17.
exd5 {[%clk 0:01:35.7]} 17... exd5 {[%clk 0:02:03.7]} 18. Rde1 {[%clk
0:01:31.3]} 18... f6 {[%clk 0:02:00.2]} 19. Qd2 {[%clk 0:01:26.3]} 19... Rf7
{[%clk 0:01:50.8]} 20. f4 {[%clk 0:01:18.9]} 20... Ne7 {[%clk 0:01:47]} 21. a3
{[%clk 0:01:11.7]} 21... Nf5 {[%clk 0:01:42.7]} 22. b3 {[%clk 0:01:00.2]} 22...
Qd6 {[%clk 0:01:35.3]} 23. Kb2 {[%clk 0:00:58.1]} 23... c6 {[%clk 0:01:23.7]}
24. Na4 {[%clk 0:00:51.8]} 24... Kc7 {[%clk 0:01:18.8]} 25. Nc5 {[%clk 0:00:50]}
25... Ng7 {[%clk 0:01:03.6]} 26. Re2 {[%clk 0:00:41]} 26... Kb8 {[%clk
0:00:51.8]} 27. Rhe1 {[%clk 0:00:33.6]} 27... fxg5 {[%clk 0:00:49.2]} 28. fxg5
{[%clk 0:00:23.3]} 28... Ka7 {[%clk 0:00:47.6]} 29. Qd3 {[%clk 0:00:11.9]} 29...
Rdf8 {[%clk 0:00:37]} 30. Re6 {[%clk 0:00:07.9]} 30... Nxe6 {[%clk 0:00:36.1]}
31. Rxe6 {[%clk 0:00:08.8]} 31... Qc7 {[%clk 0:00:30.9]} 32. Qxg6 {[%clk
0:00:07.8]} 32... Rf4 {[%clk 0:00:30.3]} 33. Qxh5 {[%clk 0:00:05.3]} 33... Rxd4
{[%clk 0:00:30.3]} 34. Nd3 {[%clk 0:00:04.9]} 34... Qg7 {[%clk 0:00:27.8]} 35.
Qh6 {[%clk 0:00:02.8]} 35... Rg8 {[%clk 0:00:26]} 36. Qxg7 {[%clk 0:00:02.5]}
36... Rxg7 {[%clk 0:00:26.9]} 37. Rh6 {[%clk 0:00:02.8]} 37... Re4 {[%clk
0:00:22.6]} 38. g6 {[%clk 0:00:02.2]} 38... d4 {[%clk 0:00:20.3]} 39. h5 {[%clk
0:00:02.7]} 39... Rh4 {[%clk 0:00:20.6]} 40. Ne5 {[%clk 0:00:02.5]} 40... Re7
{[%clk 0:00:20.2]} 41. Nd3 {[%clk 0:00:01.5]} 41... Kb6 {[%clk 0:00:19.7]} 42.
Rh8 {[%clk 0:00:00.5]} 42... Re2 {[%clk 0:00:18.9]} 43. a4 {[%clk 0:00:01.4]}
43... Rg2 {[%clk 0:00:18.6]} 44. Ka3 {[%clk 0:00:02.1]} 44... a5 {[%clk
0:00:18.8]} 45. b4 {[%clk 0:00:02.1]} 45... axb4+ {[%clk 0:00:18.5]} 46. Kxb4
{[%clk 0:00:02.3]} 46... Ka7 {[%clk 0:00:18.9]} 47. a5 {[%clk 0:00:03.2]} 47...
b6 {[%clk 0:00:18.9]} 48. Nc5 {[%clk 0:00:03.9]} 48... bxc5+ {[%clk 0:00:18.6]}
49. Kxc5 {[%clk 0:00:04.8]} 49... Rg5+ {[%clk 0:00:18.8]} 0-1

[Event "*** Titled Tuesday Blitz"]
[Site "Chess.com"]
[Date "2021.03.30"]
[Round "7"]
[White "xberli"]
[Black "Limelight2727"]
[Result "0-1"]
[WhiteElo "2494"]
[BlackElo "2364"]
[TimeControl "180+1"]
[EndTime "11:18:58 PDT"]
[Termination "Limelight2727 won on time"]

1. d4 {[%clk 0:03:00.9]} 1... Nf6 {[%clk 0:02:59.7]} 2. Nc3 {[%clk 0:03:01.8]}
2... d5 {[%clk 0:02:59.3]} 3. Bf4 {[%clk 0:03:02.3]} 3... c5 {[%clk 0:02:57.3]}
4. e3 {[%clk 0:03:01.4]} 4... Nc6 {[%clk 0:02:56]} 5. h3 {[%clk 0:03:00.7]} 5...
a6 {[%clk 0:02:47.2]} 6. a3 {[%clk 0:02:56.8]} 6... e6 {[%clk 0:02:39.9]} 7. g4
{[%clk 0:02:53.2]} 7... cxd4 {[%clk 0:02:26.8]} 8. exd4 {[%clk 0:02:54.1]} 8...
Bd6 {[%clk 0:02:27.1]} 9. Nge2 {[%clk 0:02:46.8]} 9... Bxf4 {[%clk 0:02:17.6]}
10. Nxf4 {[%clk 0:02:47.7]} 10... Qd6 {[%clk 0:02:17.8]} 11. Qd2 {[%clk
0:02:42.7]} 11... O-O {[%clk 0:02:13.1]} 12. Bg2 {[%clk 0:02:42.1]} 12... Ne4
{[%clk 0:02:05.4]} 13. Nxe4 {[%clk 0:02:38.2]} 13... dxe4 {[%clk 0:02:04.4]} 14.
Bxe4 {[%clk 0:02:26.7]} 14... Qxd4 {[%clk 0:01:44.4]} 15. Qxd4 {[%clk
0:02:23.7]} 15... Nxd4 {[%clk 0:01:45.3]} 16. O-O-O {[%clk 0:02:22.1]} 16... e5
{[%clk 0:01:30.5]} 17. Nd3 {[%clk 0:02:16.1]} 17... f6 {[%clk 0:00:41.7]} 18. c3
{[%clk 0:02:12]} 18... Nc6 {[%clk 0:00:40.1]} 19. Nb4 {[%clk 0:02:00.3]} 19...
Nxb4 {[%clk 0:00:39.5]} 20. axb4 {[%clk 0:02:00.5]} 20... a5 {[%clk 0:00:39.9]}
21. b5 {[%clk 0:01:46.1]} 21... a4 {[%clk 0:00:40.3]} 22. Kc2 {[%clk 0:01:44.4]}
22... f5 {[%clk 0:00:39.4]} 23. Bd5+ {[%clk 0:01:40.2]} 23... Kh8 {[%clk
0:00:39.2]} 24. g5 {[%clk 0:01:38.2]} 24... f4 {[%clk 0:00:39.1]} 25. Be4 {[%clk
0:01:33.6]} 25... Bf5 {[%clk 0:00:38.1]} 26. Bxf5 {[%clk 0:01:32.3]} 26... Rxf5
{[%clk 0:00:39]} 27. h4 {[%clk 0:01:33.1]} 27... e4 {[%clk 0:00:39.4]} 28. c4
{[%clk 0:01:28]} 28... Rc8 {[%clk 0:00:34.3]} 29. Rd4 {[%clk 0:01:27.4]} 29...
Rxb5 {[%clk 0:00:34.1]} 30. Rxe4 {[%clk 0:01:25.4]} 30... Rb4 {[%clk 0:00:34.6]}
31. Rxf4 {[%clk 0:01:13.9]} 31... Rcxc4+ {[%clk 0:00:34.5]} 32. Rxc4 {[%clk
0:01:14.8]} 32... Rxc4+ {[%clk 0:00:35.3]} 33. Kd3 {[%clk 0:01:14.6]} 33... Rb4
{[%clk 0:00:35.7]} 34. Rc1 {[%clk 0:01:10.2]} 34... g6 {[%clk 0:00:32.3]} 35.
Rc4 {[%clk 0:01:04.4]} 35... Rxb2 {[%clk 0:00:30.2]} 36. f4 {[%clk 0:00:52.2]}
36... b5 {[%clk 0:00:29.5]} 37. Rc7 {[%clk 0:00:52]} 37... a3 {[%clk 0:00:27.7]}
38. Ra7 {[%clk 0:00:50]} 38... b4 {[%clk 0:00:24.7]} 39. Kd4 {[%clk 0:00:46.2]}
39... Re2 {[%clk 0:00:19.2]} 40. h5 {[%clk 0:00:17.3]} 40... gxh5 {[%clk
0:00:11.9]} 41. f5 {[%clk 0:00:17.6]} 41... Rg2 {[%clk 0:00:12.3]} 42. Ke5
{[%clk 0:00:13.5]} 42... Rxg5 {[%clk 0:00:11.8]} 43. Ra4 {[%clk 0:00:11.5]}
43... Rg8 {[%clk 0:00:09.5]} 44. f6 {[%clk 0:00:09]} 44... Re8+ {[%clk
0:00:09.3]} 45. Kf5 {[%clk 0:00:08.4]} 45... h4 {[%clk 0:00:09.7]} 46. f7 {[%clk
0:00:04]} 46... Rf8 {[%clk 0:00:10.2]} 47. Ke6 {[%clk 0:00:02.5]} 47... h3
{[%clk 0:00:10.2]} 48. Rxb4 {[%clk 0:00:02.3]} 48... h2 {[%clk 0:00:09.8]} 49.
Rb1 {[%clk 0:00:02.1]} 49... a2 {[%clk 0:00:09.9]} 50. Ra1 {[%clk 0:00:01.9]}
50... Kg7 {[%clk 0:00:10.1]} 51. Rh1 {[%clk 0:00:02.4]} 51... Rxf7 {[%clk
0:00:10.3]} 52. Rxh2 {[%clk 0:00:02.9]} 52... Rf6+ {[%clk 0:00:11.1]} 53. Ke7
{[%clk 0:00:02.5]} 53... a1=Q {[%clk 0:00:12]} 54. Rg2+ {[%clk 0:00:03.1]} 54...
Rg6 {[%clk 0:00:12.7]} 55. Rf2 {[%clk 0:00:03.1]} 55... Qa7+ {[%clk 0:00:12.8]}
0-1